bitfinex/quotes_BTCUSD_20260127
["timestamp","ask_amount","ask_price","bid_price","bid_amount"]
[1769477605101,0.00013949,88689.0,88677.0,0.11146091]
[1769477605289,0.00013949,88689.0,88678.0,0.11146091]
[1769477605488,0.00013949,88689.0,88679.0,0.11146091]
[1769477605732,0.00013949,88689.0,88680.0,0.11146091]
[1769477605933,0.00013949,88689.0,88676.0,0.37648871]
[1769477605934,0.00013949,88689.0,88681.0,0.11146091]
[1769477606191,0.00013949,88689.0,88676.0,0.37648871]
[1769477606894,0.00013949,88689.0,88674.0,0.02496722]
[1769477606895,0.01387476,88754.0,88700.0,0.02496722]
[1769477607019,0.00066517,88734.0,88723.0,0.02496722]
[1769477607221,0.00066517,88734.0,88725.0,0.02496722]
[1769477607625,0.00066517,88734.0,88726.0,0.02496722]
[1769477608048,0.00066517,88734.0,88703.0,0.13374647]
[1769477608049,0.00066517,88734.0,88720.0,0.37648871]
[1769477608267,0.00066517,88734.0,88720.0,0.40145593]
[1769477608488,0.0729896,88733.0,88720.0,0.40135593]
[1769477608659,0.0729896,88733.0,88721.0,0.02481104]
[1769477609071,0.00066517,88734.0,88720.0,0.37638871]
[1769477609072,0.00066517,88734.0,88722.0,0.65106282]
[1769477609284,0.0005834,88823.0,88716.0,0.116]
[1769477609285,0.0007589,88761.0,88743.0,0.00933483]
[1769477609590,0.00052286,88754.0,88743.0,0.03430205]
[1769477609997,0.00052286,88754.0,88743.0,0.02496722]
[1769477610153,0.01178995,88754.0,88743.0,0.02496722]
[1769477610571,0.00052286,88754.0,88743.0,0.02496722]
[1769477611271,0.00152286,88754.0,88743.0,0.02496722]
[1769477611683,0.01126735,88752.0,88743.0,0.02496722]
[1769477611880,0.01126735,88752.0,88737.0,0.65106282]
[1769477611881,0.0112676,88750.0,88737.0,0.65106282]
[1769477612089,0.0112676,88750.0,88738.0,0.02496722]
[1769477612295,0.0112676,88750.0,88738.0,0.02481083]
[1769477612752,0.01126773,88749.0,88738.0,0.02481083]
[1769477612933,0.01126722,88753.0,88738.0,0.02481083]
[1769477613084,0.01126773,88749.0,88739.0,0.02496722]
[1769477613283,0.01126747,88751.0,88742.0,0.65106282]
[1769477613535,0.01126735,88752.0,88743.0,0.02496722]
[1769477614214,0.01126735,88752.0,88730.0,0.46875597]
[1769477614544,0.01126735,88752.0,88716.0,0.116]
[1769477614545,0.01126735,88752.0,88734.0,0.02496722]
[1769477614696,0.08104184,88752.0,88734.0,0.02496722]
[1769477614909,0.08104184,88752.0,88735.0,0.02496722]
[1769477614910,0.01126735,88752.0,88735.0,0.02496722]
[1769477615121,0.01126735,88752.0,88732.0,0.11596]
[1769477615122,0.01126735,88752.0,88736.0,0.65106282]
[1769477615339,0.01126735,88752.0,88737.0,0.02496722]
[1769477615548,0.01126735,88752.0,88732.0,0.11596]
[1769477615765,0.63907665,88751.0,88732.0,0.11596]
[1769477615902,0.06757847,88750.0,88732.0,0.11596]
[1769477616103,0.06757847,88750.0,88733.0,0.65106282]
[1769477616326,0.06757847,88750.0,88734.0,0.02496722]
[1769477616527,0.02491788,88753.0,88735.0,0.65106282]
[1769477616723,0.00052286,88754.0,88738.0,0.02496722]
[1769477616945,0.00052286,88754.0,88740.0,0.02496722]
[1769477617276,0.01126735,88752.0,88740.0,0.02496722]
[1769477617882,0.01126722,88753.0,88740.0,0.02496722]
[1769477618083,0.01178995,88754.0,88742.0,0.02496722]
[1769477618286,0.00052286,88754.0,88744.0,0.02496722]
[1769477619015,0.0003834,88777.0,88746.0,0.02496722]
[1769477619016,0.0007589,88761.0,88746.0,0.02496722]
[1769477619215,0.0007589,88761.0,88749.0,0.65106282]
[1769477619413,0.0007589,88761.0,88752.0,0.02496722]
[1769477619613,0.0007589,88761.0,88753.0,0.02496722]
[1769477620994,0.0007589,88761.0,88754.0,0.65106282]
[1769477621213,0.0007589,88761.0,88755.0,0.02496722]
[1769477621619,0.0007589,88761.0,88755.0,0.09258417]
[1769477621801,0.0112643,88776.0,88761.0,0.0007589]
[1769477621802,0.0176898,88773.0,88761.0,0.0007589]
[1769477622003,0.03618167,88780.0,88763.0,0.02496722]
[1769477622004,0.01126392,88779.0,88763.0,0.02496722]
[1769477622229,0.01126392,88779.0,88761.0,0.0007589]
[1769477622230,0.01126392,88779.0,88766.0,0.02496722]
[1769477622439,0.0112643,88776.0,88761.0,0.0007589]
[1769477622685,0.0112643,88776.0,88762.0,0.65106282]
[1769477622905,0.63907665,88781.0,88761.0,0.00683759]
[1769477622906,0.02491788,88798.0,88766.0,0.65106282]
[1769477623037,0.06126126,88800.0,88776.0,0.66030392]
[1769477623240,0.05,88800.0,88779.0,0.02496722]
[1769477623485,0.05,88800.0,88776.0,0.0092411]
[1769477623486,0.01126138,88799.0,88783.0,0.02496722]
[1769477623680,0.05,88800.0,88785.0,0.65106282]
[1769477623830,0.05,88800.0,88786.0,0.02496722]
[1769477624033,0.01126138,88799.0,88786.0,0.02496722]
[1769477624235,0.00064398,88792.0,88786.0,0.02496722]
[1769477625260,0.00064398,88792.0,88772.0,0.11592]
[1769477625261,0.05,88800.0,88772.0,0.11592]
[1769477625467,0.61734467,88798.0,88776.0,0.02496722]
[1769477625688,0.61734467,88798.0,88780.0,0.65106282]
[1769477625889,0.62860618,88798.0,88782.0,0.02496722]
[1769477626053,0.01126164,88797.0,88782.0,0.02496722]
[1769477626259,0.01126176,88796.0,88782.0,0.0248109]
[1769477626473,0.01126164,88797.0,88782.0,0.02465458]
[1769477626719,0.62860618,88798.0,88782.0,0.02465458]
[1769477626898,0.61734467,88798.0,88782.0,0.09222632]
[1769477627106,0.03617926,88799.0,88783.0,0.02496722]
[1769477627312,0.65352393,88799.0,88783.0,0.02496722]
[1769477627709,0.01126227,88792.0,88783.0,0.02496722]
[1769477627893,0.06757144,88795.0,88783.0,0.02496722]
[1769477628105,0.01126214,88793.0,88783.0,0.02496722]
[1769477628329,0.65033994,88784.0,88772.0,0.00013938]
[1769477628488,0.63907665,88784.0,88772.0,0.00013938]
[1769477628696,0.65033994,88784.0,88772.0,0.00013938]
[1769477628898,0.01126354,88782.0,88772.0,0.00013938]
[1769477629246,0.01126367,88781.0,88772.0,0.00013938]
[1769477629546,0.01126354,88782.0,88772.0,0.00013938]
[1769477629764,0.01126329,88784.0,88772.0,0.00013938]
[1769477629765,0.01126341,88783.0,88772.0,0.00013938]
[1769477629950,0.01126392,88779.0,88772.0,0.00013938]
[1769477630601,0.01126379,88780.0,88772.0,0.00013938]
[1769477630781,0.01126329,88784.0,88772.0,0.0141684]
[1769477631168,0.05637683,88858.0,88772.0,0.0141684]
[1769477631169,0.6401479,88799.0,88773.0,0.62256192]
[1769477631372,0.07342652,88800.0,88776.0,0.02427077]
[1769477631612,0.71357442,88800.0,88779.0,0.62256192]
[1769477631770,0.71357442,88800.0,88781.0,0.64683269]
[1769477631969,0.01126176,88796.0,88781.0,0.64683269]
[1769477632373,0.01126164,88797.0,88781.0,0.64683269]
[1769477632569,0.01126176,88796.0,88781.0,0.64683269]
[1769477632774,0.01126189,88795.0,88781.0,0.64683269]
[1769477633237,0.01126176,88796.0,88781.0,0.64683269]
[1769477634214,0.01126202,88794.0,88781.0,0.64683269]
[1769477635059,0.01126214,88793.0,88781.0,0.64683269]
[1769477635260,0.01126227,88792.0,88781.0,0.64683269]
[1769477635492,0.01126214,88793.0,88781.0,0.64683269]
[1769477635920,0.01126214,88793.0,88781.0,0.6451421]
[1769477636134,0.02342652,88799.0,88772.0,0.0141684]
[1769477636300,0.01126291,88787.0,88773.0,0.11113304]
[1769477636500,0.01126291,88787.0,88774.0,0.11113304]
[1769477636714,0.01126291,88787.0,88775.0,0.11113304]
[1769477636902,0.01126278,88788.0,88773.0,0.62256192]
[1769477637222,0.01126291,88787.0,88774.0,0.73369115]
[1769477637433,0.01126291,88787.0,88775.0,0.11112923]
[1769477637646,0.02342652,88786.0,88772.0,0.00013938]
[1769477637931,0.70523831,88783.0,88773.0,0.11114699]
[1769477638105,0.70523831,88783.0,88774.0,0.11114699]
[1769477638294,0.02342652,88783.0,88775.0,0.11117959]
[1769477638494,0.51875597,88800.0,88772.0,0.00013938]
[1769477638495,0.68181179,88788.0,88776.0,0.0111319]
[1769477638696,0.01126278,88788.0,88773.0,0.64683269]
[1769477638901,0.01126291,88787.0,88774.0,0.7337404]
[1769477639100,0.01126291,88787.0,88775.0,0.11117848]
[1769477639302,0.01126291,88787.0,88774.0,0.62256192]
[1769477639303,0.01126291,88787.0,88776.0,0.11120847]
[1769477639503,0.01126329,88784.0,88774.0,0.62256192]
[1769477639706,0.01126291,88787.0,88775.0,0.11120835]
[1769477639923,0.01126291,88787.0,88773.0,0.62256192]
[1769477640089,0.01126291,88787.0,88775.0,0.64683269]
[1769477641301,0.01126291,88787.0,88775.0,0.62256192]
[1769477641536,0.68181179,88786.0,88772.0,0.00013938]
[1769477641735,0.68181179,88786.0,88773.0,0.11123358]
[1769477641736,0.02342652,88785.0,88773.0,0.11123358]
[1769477641942,0.02342652,88785.0,88772.0,0.00013938]
[1769477641943,0.01126392,88779.0,88774.0,0.11123358]
[1769477642142,0.0112643,88776.0,88772.0,0.00013938]
[1769477642602,0.02342652,88775.0,88772.0,0.00013938]
[1769477642754,0.01126443,88775.0,88752.0,0.08916431]
[1769477642943,0.01126443,88775.0,88732.0,0.16672619]
[1769477642944,0.01126532,88768.0,88748.0,0.73840192]
[1769477643143,0.01126532,88768.0,88751.0,0.02427077]
[1769477643462,0.01126633,88760.0,88748.0,0.11597946]
[1769477644035,0.0346926,88762.0,88748.0,0.11597946]
[1769477644272,0.0112662,88761.0,88748.0,0.11597946]
[1769477644473,0.01126633,88760.0,88748.0,0.11597946]
[1769477644672,0.68181179,88759.0,88748.0,0.11597946]
[1769477644906,0.01126709,88754.0,88748.0,0.11597946]
[1769477645265,0.68181179,88770.0,88754.0,0.01]
[1769477645455,0.02342652,88767.0,88754.0,0.01]
[1769477645654,0.68181179,88764.0,88754.0,0.01]
[1769477645888,0.02342652,88763.0,88754.0,0.01]
[1769477646092,0.01126633,88760.0,88754.0,0.01]
[1769477646294,0.0112662,88761.0,88748.0,0.11597946]
[1769477646453,0.01126633,88760.0,88748.0,0.11597946]
[1769477646654,0.01126722,88753.0,88748.0,0.11597946]
[1769477646853,0.01126684,88756.0,88738.0,0.08916431]
[1769477646854,0.01126747,88751.0,88738.0,0.08916431]
[1769477647172,0.01126747,88751.0,88735.0,0.735997]
[1769477647173,0.01126773,88749.0,88735.0,0.735997]
[1769477647376,0.01126773,88749.0,88736.0,0.08916431]
[1769477647591,0.01126773,88749.0,88726.0,0.14296]
[1769477647592,0.01126824,88745.0,88734.0,0.08916431]
[1769477647784,0.01126824,88745.0,88733.0,0.08916431]
[1769477647970,0.01126874,88741.0,88729.0,0.08916431]
[1769477648170,0.01126862,88742.0,88729.0,0.62256192]
[1769477648392,0.01126862,88742.0,88728.0,0.02427077]
[1769477648393,0.01126874,88741.0,88728.0,0.08916431]
[1769477648596,0.02342652,88741.0,88727.0,0.08916431]
[1769477648797,0.011269,88739.0,88726.0,0.14296]
[1769477648998,0.02342652,88737.0,88726.0,0.02708]
[1769477649260,0.03469577,88737.0,88726.0,0.02708]
[1769477649555,0.70523831,88736.0,88720.0,0.02427077]
[1769477649702,0.68181179,88734.0,88714.0,0.71172623]
[1769477650041,0.02342652,88750.0,88721.0,0.02427077]
[1769477650249,0.02342652,88750.0,88720.0,0.46875597]
[1769477650250,0.02342652,88748.0,88724.0,0.62256192]
[1769477650478,0.01126811,88746.0,88727.0,0.64683269]
[1769477650672,0.01126824,88745.0,88727.0,0.64683269]
[1769477651569,0.01126836,88744.0,88727.0,0.64683269]
[1769477651771,0.01126824,88745.0,88727.0,0.64683269]
[1769477652671,0.01126836,88744.0,88727.0,0.64683269]
[1769477652881,0.01126862,88742.0,88727.0,0.64683269]
[1769477653056,0.01126836,88744.0,88727.0,0.75839156]
[1769477653465,0.01126811,88746.0,88727.0,0.73412079]
[1769477653792,0.01126811,88746.0,88728.0,0.64683269]
[1769477654292,0.48275407,88747.0,88728.0,0.64683269]
[1769477654437,0.01126836,88744.0,88729.0,0.06241349]
[1769477655147,0.01126824,88745.0,88729.0,0.06241349]
[1769477655347,0.49402205,88747.0,88729.0,0.68497541]
[1769477655561,0.0001392,88751.0,88730.0,0.02427077]
[1769477655770,0.02895647,88750.0,88733.0,0.62256192]
[1769477655977,0.02895647,88750.0,88734.0,0.64683269]
[1769477655978,0.01126773,88749.0,88734.0,0.64683269]
[1769477656198,0.01126785,88748.0,88734.0,0.64683269]
[1769477657526,0.01126773,88749.0,88734.0,0.64683269]
[1769477658177,0.01126798,88747.0,88734.0,0.64683269]
[1769477658713,0.02895647,88750.0,88734.0,0.7123828]
[1769477659579,0.01768887,88750.0,88734.0,0.7123828]
[1769477661537,0.01768887,88750.0,88734.0,0.64683269]
[1769477662094,0.01126785,88748.0,88734.0,0.64683269]
[1769477662296,0.01126773,88749.0,88734.0,0.64683269]
[1769477662840,0.70077644,88749.0,88734.0,0.02427077]
[1769477663298,0.05633975,88748.0,88734.0,0.02427077]
[1769477663482,0.70077644,88749.0,88734.0,0.02427077]
[1769477663684,0.01768887,88750.0,88722.0,0.02366495]
[1769477663845,0.01768887,88750.0,88725.0,0.68458681]
[1769477664051,0.01768887,88750.0,88727.0,0.68458681]
[1769477664287,0.01768887,88750.0,88730.0,0.02366495]
[1769477664512,0.01768887,88750.0,88732.0,0.02366495]
[1769477664667,0.01768887,88750.0,88733.0,0.02366495]
[1769477664868,0.01768887,88750.0,88733.0,0.09449013]
[1769477665065,0.01768887,88750.0,88733.0,0.02366495]
[1769477666169,0.70719758,88750.0,88733.0,0.02366495]
[1769477666370,0.49027319,88750.0,88733.0,0.02366495]
[1769477667357,0.49027319,88750.0,88733.0,0.70825176]
[1769477670861,0.0001392,88751.0,88736.0,0.02366495]
[1769477671042,0.0001392,88751.0,88739.0,0.68458681]
[1769477671242,0.0001392,88751.0,88740.0,0.68458681]
[1769477671551,0.0001392,88751.0,88744.0,0.68458681]
[1769477671761,0.0001392,88751.0,88744.0,0.70825176]
[1769477672709,0.0001392,88751.0,88744.0,0.02366495]
[1769477674608,0.0112662,88761.0,88746.0,0.02366495]
[1769477674812,0.0563302,88763.0,88747.0,0.70825176]
[1769477674813,0.01126608,88762.0,88747.0,0.70825176]
[1769477675035,0.0112662,88761.0,88747.0,0.70839096]
[1769477675914,0.01126633,88760.0,88747.0,0.70839096]
[1769477676115,0.0112662,88761.0,88747.0,0.70839096]
[1769477676341,0.0112662,88761.0,88748.0,0.0708391]
[1769477677991,0.0112662,88761.0,88747.0,0.02380415]
[1769477678199,0.0112662,88761.0,88747.0,0.0001392]
[1769477678409,0.11588,88774.0,88732.0,0.05846053]
[1769477678410,0.05633659,88753.0,88734.0,0.02366495]
[1769477678614,0.05633659,88753.0,88735.0,0.11192796]
[1769477678615,0.0112676,88750.0,88735.0,0.11192796]
[1769477678846,0.0112676,88750.0,88736.0,0.11192796]
[1769477679065,0.0112676,88750.0,88735.0,0.02366495]
[1769477679279,0.01126747,88751.0,88736.0,0.11193296]
[1769477679461,0.01126747,88751.0,88735.0,0.02366495]
[1769477679759,0.0001393,88753.0,88736.0,0.11193322]
[1769477679982,0.0001393,88753.0,88735.0,0.02366495]
[1769477680185,0.02281866,88752.0,88731.0,0.11588]
[1769477680361,0.02281866,88752.0,88734.0,0.02366495]
[1769477680554,0.02281866,88752.0,88735.0,0.11193665]
[1769477680752,0.02281866,88752.0,88734.0,0.02366495]
[1769477680753,0.01126773,88749.0,88734.0,0.02366495]
[1769477681133,0.03408639,88749.0,88733.0,0.68458681]
[1769477681401,0.03408639,88749.0,88734.0,0.1119405]
[1769477681597,0.03408639,88749.0,88733.0,0.68479681]
[1769477681772,0.03408639,88749.0,88734.0,0.11194094]
[1769477682033,0.01130971,88748.0,88733.0,0.00021]
[1769477682179,0.02281866,88748.0,88733.0,0.00021]
[1769477689235,0.03408651,88748.0,88733.0,0.00021]
[1769477689440,0.02281866,88748.0,88733.0,0.00021]
[1769477689640,0.50677782,88753.0,88734.0,0.02373409]
[1769477689806,0.50677782,88753.0,88736.0,0.02373409]
[1769477690172,0.0001393,88753.0,88737.0,0.6525727]
[1769477690395,0.0001393,88753.0,88739.0,0.6525727]
[1769477690609,0.0001393,88753.0,88740.0,0.02373409]
[1769477691797,0.0001393,88753.0,88740.0,0.02218496]
[1769477692028,0.0001393,88753.0,88741.0,0.07574088]
[1769477692803,0.01140652,88753.0,88741.0,0.07574088]
[1769477694320,0.01126747,88751.0,88741.0,0.07574088]
[1769477694580,0.0112676,88750.0,88741.0,0.07574088]
[1769477694977,0.01126747,88751.0,88741.0,0.07574088]
[1769477695177,0.01126747,88751.0,88740.0,0.02218496]
[1769477695466,0.0001393,88753.0,88740.0,0.02218496]
[1769477699031,0.0001393,88753.0,88742.0,0.02373409]
[1769477699268,0.0001393,88753.0,88743.0,0.02373409]
[1769477701447,0.01126785,88748.0,88736.0,0.00021]
[1769477701660,0.01126862,88742.0,88731.0,0.13961409]
[1769477701877,0.01126862,88742.0,88732.0,0.11202122]
[1769477702085,0.01126874,88741.0,88733.0,0.11202122]
[1769477702222,0.01126874,88741.0,88731.0,0.13961409]
[1769477702439,0.01126874,88741.0,88732.0,0.11202129]
[1769477702440,0.51790777,88737.0,88732.0,0.11202129]
[1769477702640,0.51790777,88737.0,88721.0,0.02373409]
[1769477702878,0.01126938,88736.0,88722.0,0.11204949]
[1769477703087,0.01126938,88736.0,88723.0,0.11204949]
[1769477703296,0.01126938,88736.0,88721.0,0.02373409]
[1769477703496,0.01432326,88741.0,88722.0,0.11203049]
[1769477703718,0.55990222,88740.0,88721.0,0.02373409]
[1769477704363,0.01126989,88732.0,88721.0,0.02373409]
[1769477704623,0.01127001,88731.0,88721.0,0.02373409]
[1769477705064,0.01127014,88730.0,88721.0,0.02373409]
[1769477705242,0.01127039,88728.0,88720.0,0.11588]
[1769477705549,0.01127039,88728.0,88714.0,0.02373409]
[1769477705550,0.01127065,88726.0,88714.0,0.02373409]
[1769477705716,0.01127065,88726.0,88716.0,0.02373409]
[1769477706118,0.01127039,88728.0,88716.0,0.02373409]
[1769477706747,0.01140964,88728.0,88716.0,0.02373409]
[1769477706960,0.00013925,88728.0,88716.0,0.02373409]
[1769477707298,0.00013925,88728.0,88716.0,0.02322855]
[1769477707754,8.925e-05,88728.0,88716.0,0.02322855]
[1769477708224,0.0542888,88728.0,88716.0,0.02322855]
[1769477708851,0.06555919,88728.0,88716.0,0.02322855]
[1769477709584,0.01076964,88728.0,88716.0,0.02322855]
[1769477709923,0.51936676,88731.0,88716.0,0.02322855]
[1769477710128,0.09022072,88748.0,88718.0,0.02373409]
[1769477710529,0.53063627,88735.0,88718.0,0.02373409]
[1769477710861,0.01126989,88732.0,88718.0,0.02373409]
[1769477711568,0.53063627,88735.0,88720.0,0.02433263]
[1769477711986,0.53036627,88735.0,88720.0,0.02433263]
[1769477712515,0.01126989,88732.0,88720.0,0.02433263]
[1769477712935,0.01059989,88732.0,88720.0,0.02433263]
[1769477713170,0.01126976,88733.0,88720.0,0.02433263]
[1769477713573,0.01126963,88734.0,88720.0,0.02433263]
[1769477713748,0.01126963,88734.0,88721.0,0.06773705]
[1769477713955,0.01126963,88734.0,88720.0,0.02433263]
[1769477713956,0.01126976,88733.0,88720.0,0.02433263]
[1769477714362,0.01015976,88733.0,88720.0,0.02433263]
[1769477714762,0.01126989,88732.0,88720.0,0.02658154]
[1769477715161,0.01015976,88733.0,88720.0,0.02658154]
[1769477715542,0.01001976,88733.0,88720.0,0.02658154]
[1769477715807,0.01126989,88732.0,88720.0,0.02658154]
[1769477716735,0.01127001,88731.0,88720.0,0.02658154]
[1769477717003,0.01001976,88733.0,88720.0,0.02658154]
[1769477717351,0.01126963,88734.0,88720.0,0.02658154]
[1769477717750,0.01126976,88733.0,88720.0,0.02658154]
[1769477718156,0.01117976,88733.0,88720.0,0.02658154]
[1769477718783,0.01126976,88733.0,88720.0,0.02658154]
[1769477719177,0.01121976,88733.0,88720.0,0.02658154]
[1769477720081,0.01126989,88732.0,88720.0,0.02658154]
[1769477720650,0.01127001,88731.0,88720.0,0.02658154]
[1769477721187,0.01127014,88730.0,88720.0,0.02658154]
[1769477721590,0.01118001,88731.0,88720.0,0.02658154]
[1769477722417,0.01127027,88729.0,88720.0,0.02658154]
[1769477722763,0.01127052,88727.0,88720.0,0.02658154]
[1769477723116,0.01127052,88727.0,88716.0,0.00046517]
[1769477723335,0.01127065,88726.0,88716.0,0.00046517]
[1769477723852,0.01127078,88725.0,88716.0,0.00046517]
[1769477724716,0.01127065,88726.0,88709.0,0.03332825]
[1769477724717,0.01127141,88720.0,88709.0,0.03332825]
[1769477724907,0.00010471,88720.0,88709.0,0.03332825]
[1769477726080,0.01110587,88722.0,88709.0,0.03317216]
[1769477726422,0.0112709,88724.0,88710.0,0.0691928]
[1769477726568,0.01127116,88722.0,88711.0,0.03325021]
[1769477726911,0.01127128,88721.0,88711.0,0.03325021]
[1769477727437,0.01127154,88719.0,88711.0,0.03325021]
[1769477727572,0.01127166,88718.0,88711.0,0.03325021]
[1769477727758,0.01127179,88717.0,88711.0,0.03325021]
[1769477728168,0.01127141,88720.0,88711.0,0.03325021]
[1769477728781,0.01127154,88719.0,88711.0,0.03325021]
[1769477729260,0.01127166,88718.0,88711.0,0.03325021]
[1769477729603,0.01127179,88717.0,88711.0,0.03325021]
[1769477730145,0.01127166,88718.0,88711.0,0.03325021]
[1769477730854,0.01127179,88717.0,88711.0,0.03325021]
[1769477730991,0.01127192,88716.0,88711.0,0.03325021]
[1769477731195,0.01127179,88717.0,88711.0,0.03325021]
[1769477731595,0.01127192,88716.0,88711.0,0.03325021]
[1769477731995,0.01127179,88717.0,88711.0,0.03325021]
[1769477732970,0.01127154,88719.0,88711.0,0.03325021]
[1769477733307,0.01127116,88722.0,88711.0,0.03325021]
[1769477734117,0.0676272,88722.0,88711.0,0.03325021]
[1769477734328,0.01127128,88721.0,88711.0,0.03325021]
[1769477734526,0.01127141,88720.0,88711.0,0.03325021]
[1769477734960,0.01127128,88721.0,88711.0,0.03325021]
[1769477737338,0.01127103,88723.0,88711.0,0.03325021]
[1769477737572,0.24310003,88729.0,88711.0,0.03325021]
[1769477737573,0.09022072,88727.0,88711.0,0.65875587]
[1769477737776,0.51936676,88727.0,88712.0,0.04224618]
[1769477740620,0.0112709,88724.0,88712.0,0.04224618]
[1769477741156,0.01127103,88723.0,88712.0,0.04224618]
[1769477741678,0.01127128,88721.0,88712.0,0.04224618]
[1769477742077,0.01127141,88720.0,88712.0,0.04224618]
[1769477742318,0.05635824,88719.0,88709.0,0.00036465]
[1769477742489,0.01127179,88717.0,88709.0,0.00036465]
[1769477742698,0.01127166,88718.0,88709.0,0.00036465]
[1769477742900,0.01127179,88717.0,88709.0,0.00036465]
[1769477744192,0.01127192,88716.0,88709.0,0.00036465]
[1769477744430,0.01127179,88717.0,88709.0,0.00036465]
[1769477744859,0.01127205,88715.0,88709.0,0.00036465]
[1769477745017,0.51900575,88714.0,88702.0,0.1476]
[1769477745212,0.53027792,88714.0,88702.0,0.14770471]
[1769477745547,0.01127255,88711.0,88702.0,0.14770471]
[1769477745918,0.01127281,88709.0,88702.0,0.00010471]
[1769477746510,0.01127268,88710.0,88702.0,0.00010471]
[1769477746697,0.01127294,88708.0,88702.0,0.00010471]
[1769477747092,0.01127281,88709.0,88702.0,0.00010471]
[1769477747322,0.05636167,88713.0,88702.0,0.00010471]
[1769477747567,0.01127268,88710.0,88702.0,0.00010471]
[1769477748236,0.01127281,88709.0,88702.0,0.00010471]
[1769477748648,0.01127294,88708.0,88702.0,0.00010471]
[1769477748892,0.01127306,88707.0,88702.0,0.00010471]
[1769477749862,0.01127294,88708.0,88702.0,0.00010471]
[1769477750029,0.02896697,88711.0,88702.0,0.00010471]
[1769477750269,0.01769442,88711.0,88702.0,0.00010471]
[1769477750661,0.01127103,88723.0,88702.0,0.00010471]
[1769477750885,0.01127116,88722.0,88704.0,0.04674422]
[1769477751106,0.01127154,88719.0,88706.0,0.04014422]
[1769477751315,0.01127128,88721.0,88706.0,0.04014422]
[1769477751960,0.01127154,88719.0,88706.0,0.04014422]
[1769477752722,0.01127192,88716.0,88706.0,0.04014422]
[1769477752923,0.01127179,88717.0,88705.0,0.04439181]
[1769477753321,0.01127166,88718.0,88706.0,0.07058956]
[1769477753747,0.01127192,88716.0,88706.0,0.07058956]
[1769477754244,0.01127179,88717.0,88706.0,0.07058956]
[1769477754445,0.01127192,88716.0,88706.0,0.07058956]
[1769477754648,0.01127179,88717.0,88706.0,0.07058956]
[1769477754902,0.01127192,88716.0,88706.0,0.07058956]
[1769477755629,0.01127192,88716.0,88707.0,0.0497731]
[1769477755832,0.01127179,88717.0,88707.0,0.0497731]
[1769477756296,0.01127205,88715.0,88705.0,0.02464299]
[1769477756702,0.01127217,88714.0,88705.0,0.02464299]
[1769477757291,0.01127205,88715.0,88705.0,0.02464299]
[1769477757714,0.01127217,88714.0,88705.0,0.02464299]
[1769477757909,0.01127192,88716.0,88705.0,0.02464299]
[1769477758295,0.01127217,88714.0,88705.0,0.02464299]
[1769477758724,0.0112723,88713.0,88705.0,0.02464299]
[1769477758903,0.01127217,88714.0,88705.0,0.02464299]
[1769477759980,0.0112723,88713.0,88705.0,0.02464299]
[1769477760579,0.01127217,88714.0,88705.0,0.02464299]
[1769477760925,0.0112723,88713.0,88705.0,0.02464299]
[1769477761326,0.01127281,88709.0,88702.0,0.00010471]
[1769477762208,0.01127319,88706.0,88702.0,0.00010471]
[1769477762447,0.01127294,88708.0,88702.0,0.00010471]
[1769477762601,0.01127306,88707.0,88702.0,0.00010471]
[1769477762799,0.0361252,88707.0,88702.0,0.00010471]
[1769477763002,0.01127332,88705.0,88702.0,0.00010471]
[1769477763416,0.01127319,88706.0,88702.0,0.00010471]
[1769477764509,0.01127332,88705.0,88702.0,0.00010471]
[1769477766481,0.01127319,88706.0,88702.0,0.00010471]
[1769477766890,0.01127332,88705.0,88702.0,0.00010471]
[1769477767829,0.0676404,88705.0,88702.0,0.00010471]
[1769477768169,0.0676404,88705.0,88690.0,0.0003074]
[1769477768170,0.01127433,88697.0,88677.0,0.67446624]
[1769477768394,0.01127433,88697.0,88677.0,0.67460573]
[1769477768395,0.01127459,88695.0,88677.0,0.67460573]
[1769477768612,0.01127459,88695.0,88679.0,0.67446624]
[1769477768800,0.01127459,88695.0,88680.0,0.69910923]
[1769477768957,0.01127471,88694.0,88680.0,0.69910923]
[1769477769364,0.01127459,88695.0,88680.0,0.69910923]
[1769477770053,0.01127484,88693.0,88680.0,0.69910923]
[1769477770383,0.01127471,88694.0,88680.0,0.69910923]
[1769477770596,0.01127459,88695.0,88680.0,0.69910923]
[1769477770754,0.01127471,88694.0,88680.0,0.69910923]
[1769477771360,0.01127484,88693.0,88680.0,0.69910923]
[1769477771763,0.01127471,88694.0,88680.0,0.69910923]
[1769477772296,0.01127484,88693.0,88680.0,0.69910923]
[1769477772445,0.01127471,88694.0,88680.0,0.69910923]
[1769477772646,0.01127471,88694.0,88680.0,1.07443814]
[1769477772863,0.01127459,88695.0,88680.0,1.07443814]
[1769477773270,0.01127471,88694.0,88680.0,1.07443814]
[1769477774189,0.01127484,88693.0,88680.0,1.07443814]
[1769477774399,0.05096454,88694.0,88680.0,0.69910923]
[1769477775104,0.01127484,88693.0,88680.0,0.69910923]
[1769477775771,0.05096454,88694.0,88680.0,0.69910923]
[1769477776193,0.01127484,88693.0,88680.0,0.69910923]
[1769477776606,0.01127484,88693.0,88677.0,0.00013949]
[1769477776607,0.22547271,88703.0,88677.0,0.00013949]
[1769477776789,0.0112756,88687.0,88677.0,0.00013949]
[1769477776991,0.01127599,88684.0,88677.0,0.00013949]
[1769477777193,0.01127637,88681.0,88677.0,0.00013949]
[1769477777438,0.37532891,88690.0,88677.0,0.00013949]
[1769477777439,0.0112756,88687.0,88677.0,0.00013949]
[1769477777804,0.02485214,88687.0,88677.0,0.00013949]
[1769477778283,0.03612774,88687.0,88677.0,0.00013949]
[1769477778485,0.02485214,88687.0,88677.0,0.00013949]
[1769477778700,0.02485214,88687.0,88677.0,0.10516369]
[1769477779386,0.01127522,88690.0,88677.0,0.10516369]
[1769477779949,0.56545488,90867.0,88681.0,0.63275645]
[1769477779950,0.01127383,88701.0,88681.0,0.63275645]
[1769477780265,0.01127383,88701.0,88677.0,0.00013949]
[1769477780266,0.01127408,88699.0,88690.0,0.15935024]
[1769477780466,0.01127408,88699.0,88686.0,0.63275645]
[1769477780768,0.01127395,88700.0,88686.0,0.63275645]
[1769477780949,0.01127408,88699.0,88687.0,0.10323075]
[1769477781351,0.01127421,88698.0,88687.0,0.10323075]
[1769477781793,0.01127408,88699.0,88687.0,0.10323075]
[1769477782003,0.01127433,88697.0,88686.0,0.63275645]
[1769477782457,0.01127459,88695.0,88684.0,0.02422209]
[1769477782638,0.01127446,88696.0,88684.0,0.02422209]
[1769477783474,0.01127433,88697.0,88684.0,0.02422209]
[1769477784348,0.01127395,88700.0,88684.0,0.02422209]
[1769477784763,0.01127421,88698.0,88684.0,0.02422209]
[1769477785488,0.0112751,88691.0,88677.0,0.00013949]
[1769477785939,0.0338354,88693.0,88677.0,0.00013949]
[1769477785940,0.03383553,88692.0,88677.0,0.00013949]
[1769477786157,0.0112751,88691.0,88677.0,0.00013949]
[1769477786604,0.01127522,88690.0,88677.0,0.00013949]
[1769477786810,0.0112751,88691.0,88677.0,0.00013949]
[1769477787012,0.01127535,88689.0,88677.0,0.00013949]
[1769477787217,0.01127522,88690.0,88677.0,0.00013949]
[1769477787569,0.0112751,88691.0,88677.0,0.00013949]